fUST/lending_fUST_20241110
["ID","MTS","AMOUNT","RATE_DAILY","PERIOD"]
[341787140,1731228648057,-500.0,0.00030136,2]
[341787141,1731228648067,-3455.83,0.00030136,2]
[341787142,1731228648077,-520.88317783,0.00030136,2]
[341787143,1731228648087,-500.0,0.00030136,2]
[341787144,1731228648097,-500.0,0.00030136,2]
[341787145,1731228648106,-500.0,0.00030136,2]
[341787146,1731228648115,-500.0,0.00030136,2]
[341787147,1731228648124,-547.34,0.00030136,2]
[341787148,1731228648138,-1083.18,0.00030136,2]
[341787149,1731228648157,-500.0,0.00030136,2]
[341787150,1731228648178,-500.0,0.00030136,2]
[341787151,1731228648199,-500.0,0.00030136,2]
[341787152,1731228648221,-500.0,0.00030136,2]
[341787153,1731228648241,-845.25,0.00030136,2]
[341787154,1731228648250,-500.0,0.00030136,2]
[341787155,1731228648260,-36699.7,0.00030136,2]
[341787156,1731228648269,-500.0,0.00030136,2]
[341787157,1731228648278,-500.0,0.00030136,2]
[341787158,1731228648287,-573.65072768,0.00030136,2]
[341787159,1731228648298,-500.0,0.00030136,2]
[341787160,1731228648308,-880.47,0.00030136,2]
[341787161,1731228648318,-500.0,0.00030136,2]
[341787162,1731228648327,-151.0,0.00030136,3]
[341787163,1731228648336,-151.0,0.00030136,3]
[341787164,1731228648345,-500.0,0.00030136,2]
[341787165,1731228648354,-3664.08,0.00030136,120]
[341787166,1731228648364,-500.0,0.00030136,2]
[341787167,1731228648375,-500.0,0.00030136,2]
[341787168,1731228648385,-500.0,0.00030136,2]
[341787169,1731228648395,-500.0,0.00030136,2]
[341787170,1731228648404,-500.0,0.00030136,2]
[341787171,1731228648414,-500.0,0.00030136,2]
[341787172,1731228648424,-151.0,0.00030136,7]
[341787173,1731228648434,-370.72286588,0.00030136,2]
[341787174,1731228648443,-152.089447,0.00030136,7]
[341787175,1731228648453,-500.0,0.00030136,2]
[341787176,1731228648463,-598.77983415,0.00030136,2]
[341787177,1731228648472,-500.0,0.00030136,2]
[341787178,1731228648482,-151.0,0.00030136,7]
[341787179,1731228648494,-151.0,0.00030136,7]
[341787180,1731228648504,-500.0,0.00030136,2]
[341787181,1731228648514,-513.77562461,0.00030136,2]
[341787182,1731228648524,-500.0,0.00030136,2]
[341787183,1731228648533,-500.0,0.00030136,2]
[341787184,1731228648543,-500.0,0.00030136,2]
[341787185,1731228648552,-500.0,0.00030136,2]
[341787186,1731228648562,-500.0,0.00030136,2]
[341787187,1731228648646,-510.80193615,0.00030136,2]
[341787188,1731228648656,-502.08930359,0.00030136,2]
[341787189,1731228648666,-500.0,0.00030136,2]
[341787190,1731228648676,-500.0,0.00030136,2]
[341787191,1731228648685,-500.0,0.00030136,2]
[341787192,1731228648694,-500.0,0.00030136,2]
[341787193,1731228648704,-500.0,0.00030136,2]
[341787194,1731228648713,-801.01,0.00030136,120]
[341787195,1731228648722,-500.0,0.00030136,2]
[341787196,1731228648732,-243.66179463,0.00030136,2]
[341787197,1731228648742,-508.72749282,0.00030136,2]
[341787198,1731228648754,-755.17,0.00030136,2]
[341787199,1731228648766,-500.0,0.00030136,2]
[341787200,1731228648775,-500.0,0.00030136,2]
[341787201,1731228648785,-500.0,0.00030136,2]
[341787202,1731228648796,-500.0,0.00030136,2]
[341787203,1731228648806,-500.0,0.00030136,2]
[341787204,1731228648815,-500.0,0.00030136,2]
[341787205,1731228648824,-500.0,0.00030136,2]
[341787206,1731228648835,-163.983193,0.00030136,7]
[341787207,1731228648844,-163.983193,0.00030136,7]
[341787208,1731228648854,-500.0,0.00030136,2]
[341787209,1731228648863,-500.0,0.00030136,2]
[341787210,1731228648872,-500.0,0.00030136,2]
[341787211,1731228648882,-500.0,0.00030136,2]
[341787212,1731228648894,-500.0,0.00030136,2]
[341787213,1731228648904,-163.983193,0.00030136,7]
[341787214,1731228648914,-163.983193,0.00030136,7]
[341787215,1731228648924,-500.0,0.00030136,2]
[341787216,1731228648933,-445.55855818,0.00030136,2]
[341787217,1731228648942,-500.0,0.00030136,2]
[341787218,1731228648952,-260.05996386,0.00030136,2]
[341787237,1731228973152,160.588778,0.00013973,2]
[341787247,1731229036454,520.83333333,0.00020844,2]
[341787267,1731229348808,520.83333333,0.00020844,2]
[341787268,1731229349166,257.21044161,0.00031729,120]
[341787282,1731229660396,520.83333333,0.00020844,2]
[341787283,1731229707596,2994.87,0.00031729,30]
[341787305,1731229822230,160.588778,0.00013973,2]
[341787345,1731229832177,-4815.96082153,0.00021109,2]
[341787347,1731229832186,-160.588778,0.00021661,2]
[341787349,1731229832195,-520.83333333,0.00021699,2]
[341787351,1731229832204,-200.39475,0.00021999,2]
[341787353,1731229832213,-192.5505,0.00022074,2]
[341787357,1731229832232,-196.1,0.00022074,2]
[341787359,1731229832244,-1281.0,0.00022269,2]
[341787361,1731229832258,-300.0,0.00022611,2]
[341787363,1731229832267,-300.0,0.00022611,2]
[341787365,1731229832277,-4815.96082148,0.00022612,2]
[341787367,1731229832286,-4815.96082148,0.00024115,2]
[341787369,1731229832296,-4807.597108,0.00024134,2]
[341787371,1731229832306,-1281.0,0.00024496,4]
[341787373,1731229832316,-420.0,0.00024555,2]
[341787375,1731229832326,-4807.597108,0.00024819,2]
[341787377,1731229832337,-420.0,0.00024872,2]
[341787380,1731229832346,-4807.597108,0.00025504,2]
[341787382,1731229832355,-634.62983275,0.00025618,2]
[341787384,1731229832369,-4181.33098873,0.00025618,2]
[341787386,1731229832378,-587.0,0.00026667,2]
[341787388,1731229832388,-1281.0,0.00026946,7]
[341787390,1731229832398,-4815.96082148,0.0002712,2]
[341787392,1731229832407,-587.0,0.00027359,2]
[341787394,1731229832417,-531.31664325,0.00027925,7]
[341787396,1731229832427,-24900.0,0.00028316,2]
[341787398,1731229832437,-172.669,0.00028316,19]
[341787401,1731229832446,-160.0,0.00028604,3]
[341787403,1731229832455,-4815.96082148,0.00028623,2]
[341787405,1731229832465,-823.0,0.0002896,2]
[341787407,1731229832475,-1792.62575144,0.00029229,30]
[341787409,1731229832484,-153.0,0.00029288,30]
[341787411,1731229832493,-153.0,0.00029288,30]
[341787413,1731229832505,-153.0,0.00029288,30]
[341787415,1731229832514,-160.588778,0.00029349,2]
[341787417,1731229832523,-165.011,0.0002939,2]
[341787419,1731229832533,-1281.0,0.0002964,14]
[341787421,1731229832543,-2000.0,0.0003,30]
[341787423,1731229832553,-2000.0,0.0003,20]
[341787425,1731229832562,-1000.0,0.0003,2]
[341787427,1731229832571,-1375.99821582,0.0003,40]
[341787429,1731229832581,-1000.0,0.00030036,2]
[341787431,1731229832591,-889.0674376,0.00030036,2]
[341787433,1731229832600,-601.98,0.00030063,10]
[341787435,1731229832609,-501.65,0.00030063,10]
[341787437,1731229832619,-418.04,0.00030063,10]
[341787439,1731229832628,-21688.7455817,0.00030073,3]
[341787441,1731229832638,-823.0,0.00030095,2]
[341787443,1731229832648,-4815.96082148,0.00030126,2]
[341787445,1731229832657,-500.0,0.00030135,2]
[341787448,1731229832667,-239.39560253,0.00030135,2]
[341787450,1731229832676,-439.84532401,0.00030135,2]
[341787451,1731229832686,-627.74,0.00030135,2]
[341787454,1731229832696,-487.40833089,0.00030136,2]
[341787456,1731229832705,-149.55719555,0.00030136,2]
[341787458,1731229832717,-306.22991372,0.00030136,2]
[341787460,1731229832727,-151.0,0.00030136,7]
[341787462,1731229832737,-152.319636,0.00030136,7]
[341787464,1731229832748,-183.2976147,0.00030136,2]
[341787466,1731229832757,-365.130931,0.00030136,7]
[341787468,1731229832767,-365.130931,0.00030136,7]
[341787469,1731229832775,-135.87442371,0.00030136,7]
[341787470,1731229832788,-229.25650729,0.00030136,7]
[341787471,1731229832797,-365.130931,0.00030136,7]
[341787472,1731229832807,-500.0,0.00030136,2]
[341787473,1731229832817,-500.0,0.00030136,2]
[341787474,1731229832826,-401.52459924,0.00030136,2]
[341787475,1731229832835,-553.04956814,0.00030136,2]
[341787476,1731229832845,-500.0,0.00030136,2]
[341787477,1731229832854,-517.74913293,0.00030136,2]
[341787478,1731229832863,-500.0,0.00030136,2]
[341787479,1731229832872,-500.0,0.00030136,2]
[341787480,1731229832881,-532.44860388,0.00030136,2]
[341787481,1731229832892,-500.0,0.00030136,2]
[341787482,1731229832900,-500.0,0.00030136,2]
[341787483,1731229832910,-500.0,0.00030136,2]
[341787484,1731229832919,-500.0,0.00030136,2]
[341787485,1731229832928,-500.0,0.00030136,2]
[341787486,1731229832937,-500.0,0.00030136,2]
[341787487,1731229832946,-155.302042,0.00030136,7]
[341787488,1731229832955,-500.0,0.00030136,2]
[341787489,1731229832963,-500.0,0.00030136,2]
[341787490,1731229832972,-500.0,0.00030136,2]
[341787491,1731229832981,-500.0,0.00030136,2]
[341787492,1731229832991,-500.0,0.00030136,2]
[341787493,1731229833001,-500.0,0.00030136,2]
[341787494,1731229833010,-500.0,0.00030136,2]
[341787495,1731229833019,-500.0,0.00030136,2]
[341787496,1731229833028,-560.52581472,0.00030136,2]
[341787497,1731229833038,-500.0,0.00030136,2]
[341787498,1731229833047,-599.35368431,0.00030136,2]
[341787499,1731229833057,-343.45361083,0.00030136,2]
[341787500,1731229833071,-156.54638917,0.00030136,2]
[341787501,1731229833081,-433.74374986,0.00030136,2]
[341787502,1731229833091,-388.76013048,0.00030136,2]
[341787504,1731229833106,-111.23986952,0.00030136,2]
[341787506,1731229833116,-309.80950597,0.00030136,2]
[341787508,1731229833128,-190.19049403,0.00030136,2]
[341787510,1731229833139,-156.425461,0.00030136,7]
[341787512,1731229833148,-565.73,0.00030136,2]
[341787514,1731229833158,-156.425461,0.00030136,7]
[341787516,1731229833168,-500.0,0.00030136,2]
[341787518,1731229833178,-265.54649766,0.00030136,2]
[341787520,1731229833189,-151.0,0.00030136,7]
[341787522,1731229833199,-500.0,0.00030136,2]
[341787524,1731229833208,-500.57155544,0.00030136,2]
[341787526,1731229833218,-500.0,0.00030136,2]
[341787528,1731229833227,-212.18637052,0.00030136,2]
[341787571,1731229838340,-500.0,0.00026946,2]
[341787572,1731229838355,-46.58681802,0.00026946,2]
[341787573,1731229838365,-287.81362948,0.00030136,2]
[341787574,1731229838374,-500.0,0.00030136,2]
[341787575,1731229838384,-500.0,0.00030136,2]
[341787577,1731229838394,-53.8495525,0.00030136,2]
[341787580,1731229840143,-564.465,0.00030124,2]
[341787581,1731229840154,-446.1504475,0.00030136,2]
[341787582,1731229840164,-500.0,0.00030136,2]
[341787583,1731229840177,-500.0,0.00030136,2]
[341787584,1731229840188,-151.68491,0.00030136,7]
[341787585,1731229840197,-545.76255795,0.00030136,2]
[341787586,1731229840206,-500.0,0.00030136,2]
[341787587,1731229840215,-475.36214997,0.00030136,2]
[341787588,1731229840224,-151.0,0.00030136,7]
[341787589,1731229840233,-500.0,0.00030136,2]
[341787590,1731229840242,-500.0,0.00030136,2]
[341787591,1731229840251,-511.5680781,0.00030136,2]
[341787592,1731229840260,-500.0,0.00030136,2]
[341787593,1731229840269,-151.0,0.00030136,7]
[341787594,1731229840278,-500.0,0.00030136,2]
[341787595,1731229840290,-500.0,0.00030136,2]
[341787596,1731229840300,-500.0,0.00030136,2]
[341787597,1731229840309,-151.0,0.00030136,7]
[341787598,1731229840318,-151.0,0.00030136,7]
[341787599,1731229840329,-505.21094593,0.00030136,2]
[341787600,1731229840341,-500.0,0.00030136,2]
[341787601,1731229840351,-312.26925601,0.00030136,2]
[341787602,1731229840362,-500.0,0.00030136,2]
[341787603,1731229840372,-503.39785584,0.00030136,2]
[341787604,1731229840383,-476.23325464,0.00030136,2]
[341787605,1731229840393,-506.56877389,0.00030136,2]
[341787606,1731229840403,-502.24805344,0.00030136,2]
[341787607,1731229840414,-500.0,0.00030136,2]
[341787608,1731229840424,-500.0,0.00030136,2]
[341787609,1731229840434,-767.64,0.00030136,120]
[341787610,1731229840444,-500.0,0.00030136,2]
[341787611,1731229840455,-500.0,0.00030136,2]
[341787612,1731229840466,-500.0,0.00030136,2]
[341787613,1731229840476,-500.0,0.00030136,2]
[341787614,1731229840488,-309.6431752,0.00030136,2]
[341787615,1731229840498,-151.0,0.00030136,7]
[341787616,1731229840508,-500.0,0.00030136,2]
[341787617,1731229840517,-500.0,0.00030136,2]
[341787618,1731229840526,-250.0,0.00030136,2]
[341787619,1731229840535,-500.0,0.00030136,2]
[341787620,1731229840545,-500.44740116,0.00030136,2]
[341787621,1731229840555,-1083.91,0.00030136,2]
[341787622,1731229840565,-508.0965458,0.00030136,2]
[341787623,1731229840575,-500.0,0.00030136,2]
[341787624,1731229840584,-500.0,0.00030136,2]
[341787625,1731229840595,-500.0,0.00030136,2]
[341787626,1731229840607,-500.0,0.00030136,2]
[341787627,1731229840618,-500.0,0.00030136,2]
[341787628,1731229840627,-557.60599377,0.00030136,2]
[341787629,1731229840636,-500.0,0.00030136,2]
[341787630,1731229840646,-1120.94,0.00030136,2]
[341787631,1731229840660,-500.0,0.00030136,2]
[341787632,1731229840669,-500.0,0.00030136,2]
[341787633,1731229840678,-500.0,0.00030136,2]
[341787634,1731229840688,-500.0,0.00030136,2]
[341787635,1731229840698,-500.0,0.00030136,2]
[341787636,1731229840708,-500.0,0.00030136,2]
[341787637,1731229840717,-500.0,0.00030136,2]
[341787638,1731229840727,-500.0,0.00030136,2]
[341787639,1731229840736,-500.0,0.00030136,2]
[341787640,1731229840745,-500.0,0.00030136,2]
[341787641,1731229840756,-500.0,0.00030136,2]
[341787642,1731229840766,-500.0,0.00030136,2]
[341787643,1731229840775,-500.0,0.00030136,2]
[341787644,1731229840784,-500.0,0.00030136,2]
[341787645,1731229840794,-1183.97,0.00030136,2]
[341787646,1731229840803,-526.29698007,0.00030136,2]
[341787647,1731229840812,-151.0,0.00030136,7]
[341787648,1731229840822,-516.31066089,0.00030136,2]
[341787649,1731229840831,-500.0,0.00030136,2]
[341787650,1731229840840,-538.61316371,0.00030136,2]
[341787651,1731229840851,-500.0,0.00030136,2]
[341787652,1731229840860,-151.0,0.00030136,7]
[341787653,1731229840870,-500.0,0.00030136,2]
[341787654,1731229840880,-500.0,0.00030136,2]
[341787655,1731229840890,-500.0,0.00030136,2]
[341787656,1731229840899,-500.0,0.00030136,2]
[341787657,1731229840908,-500.0,0.00030136,2]
[341787658,1731229840917,-151.0,0.00030136,7]
[341787659,1731229840927,-500.0,0.00030136,2]
[341787660,1731229840937,-989.00479611,0.00030136,2]
[341787661,1731229843175,-348.36,0.00030126,10]
[341787662,1731229843185,-1475.88520389,0.00030136,2]
[341787663,1731229843194,-500.0,0.00030136,2]
[341787664,1731229843204,-140.50903918,0.00030136,2]
[341787665,1731229843234,-359.49096082,0.00030136,2]
[341787666,1731229843243,-500.0,0.00030136,2]
[341787667,1731229843253,-500.0,0.00030136,2]
[341787668,1731229843262,-357.42021604,0.00030136,2]
[341787669,1731229843351,-492.59429877,0.00030136,2]
[341787670,1731229843365,-7.40570123,0.00030136,2]
[341787671,1731229843374,-529.01742182,0.00030136,2]
[341787673,1731229843383,-500.0,0.00030136,2]
[341787674,1731229843393,-503.645809,0.00030136,2]
[341787675,1731229843402,-500.0,0.00030136,2]
[341787676,1731229843411,-500.0,0.00030136,2]
[341787677,1731229843420,-500.0,0.00030136,2]
[341787678,1731229843429,-223.84361367,0.00030136,2]
[341787769,1731230279689,186.77286328,0.0002082,2]
[341787770,1731230284230,520.83333333,0.00020844,2]
[341787772,1731230362196,301.216,0.00020844,2]
[341787773,1731230567375,2550.563648,0.00020131,2]
[341787774,1731230568054,2550.563648,0.00020816,2]
[341787775,1731230597613,520.83333333,0.00020844,2]
[341787778,1731230639439,160.837067,0.00013973,2]
[341787784,1731230753873,18949.8357517,0.00020131,2]
[341787788,1731230823227,101575.19152251,0.0002,2]
[341787791,1731230906560,249.89,0.00031671,30]
[341787792,1731230911617,520.83333333,0.00020844,2]
[341787877,1731231032443,-270.08330895,0.00021,2]
[341787878,1731231032454,-520.83333333,0.00021049,2]
[341787879,1731231032464,-500.0,0.000212,2]
[341787880,1731231032474,-2390.67375743,0.00021501,2]
[341787881,1731231032487,-159.88989057,0.00021501,2]
[341787882,1731231032496,-178.406701,0.00021844,2]
[341787883,1731231032505,-178.406701,0.00021899,2]
[341787884,1731231032516,-166.666666,0.00021918,2]
[341787885,1731231032525,-178.406701,0.00021953,2]
[341787886,1731231032534,-266.140454,0.00021979,2]
[341787887,1731231032543,-160.837067,0.00022174,2]
[341787888,1731231032553,-150.99999975,0.00023,2]
[341787889,1731231032562,-166.666666,0.00024482,2]
[341787890,1731231032571,-380.0,0.00024658,2]
[341787891,1731231032580,-300.0,0.00024999,2]
[341787892,1731231032589,-300.0,0.00024999,2]
[341787893,1731231032598,-163.0,0.00025,2]
[341787894,1731231032607,-71024.46560065,0.00025,2]
[341787895,1731231032616,-189.851,0.0002595,11]
[341787896,1731231032625,-660.0,0.00026384,2]
[341787897,1731231032634,-420.0,0.00027082,2]
[341787898,1731231032643,-420.0,0.00027499,2]
[341787899,1731231032653,-1035.75089264,0.00028585,47]
[341787900,1731231032662,-150.112237,0.000287,20]
[341787901,1731231032671,-152.631307,0.000287,2]
[341787902,1731231032680,-150.112233,0.00029,13]
[341787903,1731231032688,-153.0,0.00029315,30]
[341787904,1731231032698,-153.0,0.00029315,30]
[341787905,1731231032707,-153.0,0.00029315,30]
[341787906,1731231032716,-153.0,0.00029315,30]
[341787907,1731231032725,-587.0,0.00029339,2]
[341787908,1731231032734,-150.112233,0.000294,19]
[341787909,1731231032743,-489.51746214,0.00029664,2]
[341787910,1731231032752,-150.112233,0.000297,17]
[341787911,1731231032761,-165.78390735,0.000298,2]
[341787912,1731231032770,-1000.0,0.000299,2]
[341787913,1731231032780,-830.24008175,0.00029936,2]
[341787914,1731231032789,-830.24008174,0.00029961,2]
[341787915,1731231032798,-830.24008174,0.00029986,2]
[341787916,1731231032807,-323.7,0.0002999,10]
[341787917,1731231032816,-269.75,0.0002999,10]
[341787918,1731231032826,-224.79,0.0002999,10]
[341787919,1731231032835,-294.55,0.0002999,10]
[341787920,1731231032844,-601.58,0.00029999,2]
[341787921,1731231032853,-80540.945006,0.0003,2]
[341787922,1731231032862,-153.0,0.0003,120]
[341787923,1731231032871,-150.112233,0.0003,17]
[341787924,1731231032881,-55555.0,0.00030006,3]
[341787925,1731231032890,-830.24008174,0.00030011,2]
[341787926,1731231032899,-1189.35173542,0.00030036,2]
[341787927,1731231032909,-830.24008174,0.00030036,2]
[341787928,1731231032919,-5000.0,0.00030099,2]
[341787929,1731231032928,-5000.0,0.00030099,2]
[341787930,1731231032938,-5000.0,0.00030099,2]
[341787931,1731231032949,-5000.0,0.00030099,2]
[341787932,1731231032958,-3651.300476,0.00030099,2]
[341787933,1731231032968,-2000.0,0.000301,10]
[341787934,1731231032977,-2000.0,0.000301,30]
[341787935,1731231032987,-157.508945,0.000301,16]
[341787936,1731231032996,-355.70999723,0.00030104,2]
[341787937,1731231033006,-500.0,0.00030104,2]
[341787938,1731231033015,-500.0,0.00030104,2]
[341787939,1731231033025,-500.0,0.00030104,2]
[341787940,1731231033034,-500.0,0.00030104,2]
[341787941,1731231033044,-500.0,0.00030104,2]
[341787942,1731231033053,-500.0,0.00030104,2]
[341787943,1731231033063,-500.0,0.00030104,2]
[341787944,1731231033073,-237.19523447,0.00030104,2]
[341787945,1731231033082,-447.1369342,0.00030104,2]
[341787946,1731231033092,-500.0,0.00030104,2]
[341787947,1731231033102,-500.0,0.00030104,2]
[341787948,1731231033111,-500.0,0.00030104,2]
[341787949,1731231033121,-500.0,0.00030104,2]
[341787950,1731231033130,-368.19117724,0.00030104,2]
[341787951,1731231033140,-500.0,0.00030104,2]
[341787952,1731231033150,-500.0,0.00030104,2]
[341787953,1731231033160,-500.0,0.00030104,2]
[341787954,1731231033169,-500.0,0.00030104,2]
[341787955,1731231033179,-518.57258671,0.00030104,2]
[341787956,1731231033188,-500.0,0.00030104,2]
[341787957,1731231033200,-286.22619748,0.00030104,2]
[341787958,1731231033211,-500.0,0.00030104,2]
[341787959,1731231033221,-500.0,0.00030104,2]
[341787960,1731231033231,-500.0,0.00030104,2]
[341787961,1731231033242,-500.0,0.00030104,2]
[341787962,1731231033251,-500.0,0.00030104,2]
[341787963,1731231033261,-500.0,0.00030104,2]
[341787964,1731231033363,-500.0,0.00030104,2]
[341787965,1731231033372,-500.0,0.00030104,2]
[341787966,1731231033382,-500.0,0.00030104,2]
[341787967,1731231033391,-500.0,0.00030104,2]
[341787968,1731231033401,-500.0,0.00030104,2]
[341787969,1731231033411,-500.0,0.00030104,2]
[341787970,1731231033420,-500.0,0.00030104,2]
[341787971,1731231033430,-500.0,0.00030104,2]
[341787972,1731231033439,-500.0,0.00030104,2]
[341787973,1731231033450,-500.0,0.00030104,2]
[341787974,1731231033464,-500.0,0.00030104,2]
[341787975,1731231033474,-500.0,0.00030104,2]
[341787976,1731231033487,-500.0,0.00030104,2]
[341787977,1731231033497,-500.0,0.00030104,2]
[341787978,1731231033506,-500.0,0.00030104,2]
[341787979,1731231033515,-500.0,0.00030104,2]
[341787980,1731231033526,-500.0,0.00030104,2]
[341787982,1731231033535,-500.0,0.00030104,2]
[341787983,1731231033544,-500.0,0.00030104,2]
[341787984,1731231033554,-500.0,0.00030104,2]
[341787985,1731231033564,-500.0,0.00030104,2]
[341787986,1731231033575,-514.47706263,0.00030104,2]
[341787988,1731231033584,-500.0,0.00030104,2]
[341787990,1731231033594,-500.0,0.00030104,2]
[341787991,1731231033603,-500.0,0.00030104,2]
[341787992,1731231033612,-500.0,0.00030104,2]
[341787993,1731231033621,-500.0,0.00030104,2]
[341787995,1731231033632,-500.0,0.00030104,2]
[341787997,1731231033641,-500.0,0.00030104,2]
[341787998,1731231033650,-500.0,0.00030104,2]
[341787999,1731231033660,-500.0,0.00030104,2]
[341788000,1731231033669,-500.0,0.00030104,2]
[341788001,1731231033678,-500.0,0.00030104,2]
[341788002,1731231033687,-500.0,0.00030104,2]
[341788003,1731231033696,-500.0,0.00030104,2]
[341788004,1731231033708,-500.0,0.00030104,2]
[341788005,1731231033718,-500.0,0.00030104,2]
[341788006,1731231033727,-500.0,0.00030104,2]
[341788007,1731231033736,-500.0,0.00030104,2]
[341788008,1731231033746,-500.0,0.00030104,2]
[341788009,1731231033755,-500.0,0.00030104,2]
[341788010,1731231033764,-500.0,0.00030104,2]
[341788011,1731231033774,-500.0,0.00030104,2]
[341788012,1731231033784,-500.0,0.00030104,2]
[341788013,1731231033793,-500.0,0.00030104,2]
[341788014,1731231033802,-500.0,0.00030104,2]
[341788015,1731231033812,-651.44770627,0.00030104,2]
[341788016,1731231033821,-500.0,0.00030104,2]
[341788017,1731231033830,-500.0,0.00030104,2]
[341788018,1731231033840,-243.70416544,0.00030105,2]
[341788019,1731231033850,-227.89355464,0.00030105,2]
[341788020,1731231033860,-151.0,0.00030105,7]
[341788021,1731231033869,-151.0,0.00030105,7]
[341788022,1731231033879,-215864.8001151,0.00030105,2]
[341788023,1731231033889,-5121.42011972,0.00030106,2]
[341788024,1731231033899,-422.05317063,0.00030106,2]
[341788025,1731231033910,-214.06406,0.00030106,7]
[341788026,1731231033920,-214.06406,0.00030106,7]
[341788027,1731231033930,-151.0,0.00030106,7]
[341788028,1731231033940,-1065.69604606,0.00030127,2]
[341788029,1731231033953,-160.71405468,0.00030135,10]
[341788030,1731231033965,-454.8514742,0.00030135,2]
[341788031,1731231033975,-267.94674503,0.00030135,2]
[341788032,1731231033985,-324.15062573,0.00030135,2]
[341788033,1731231033995,-405.25765779,0.00030135,2]
[341788034,1731231034005,-211.67596062,0.00030135,2]
[341788035,1731231034015,-456.82881318,0.00030135,2]
[341788036,1731231034025,-500.0,0.00030135,2]
[341788037,1731231034035,-500.0,0.00030135,2]
[341788038,1731231034044,-500.0,0.00030135,2]
[341788039,1731231034054,-500.0,0.00030135,2]
[341788040,1731231034064,-500.0,0.00030135,2]
[341788041,1731231034073,-500.0,0.00030135,2]
[341788042,1731231034083,-227.37323667,0.00030135,2]
[341788043,1731231034093,-500.0,0.00030135,2]
[341788044,1731231034103,-566.58127002,0.00030135,2]
[341788045,1731231034112,-500.0,0.00030135,2]
[341788046,1731231034122,-285.06647836,0.00030135,2]
[341788047,1731231034132,-500.0,0.00030135,2]
[341788048,1731231034141,-500.0,0.00030135,2]
[341788049,1731231034151,-500.0,0.00030135,2]
[341788050,1731231034160,-500.0,0.00030135,2]
[341788051,1731231034170,-500.0,0.00030135,2]
[341788052,1731231034180,-187.56272152,0.00030135,2]
[341788053,1731231034190,-186.86037866,0.00030135,2]
[341788054,1731231034201,-500.0,0.00030136,15]
[341788055,1731231034210,-641.072247,0.00030136,7]
[341788056,1731231034220,-641.072247,0.00030136,7]
[341788057,1731231034230,-151.0,0.00030136,7]
[341788058,1731231034240,-151.0,0.00030136,2]
[341788059,1731231034250,-151.0,0.00030136,7]
[341788060,1731231034261,-151.0,0.00030136,7]
[341788061,1731231034272,-225.840158,0.00030136,7]
[341788062,1731231034282,-151.0,0.00030136,7]
[341788063,1731231034294,-151.0,0.00030136,7]
[341788064,1731231034304,-151.0,0.00030136,7]
[341788065,1731231034315,-151.0,0.00030136,7]
[341788066,1731231034325,-151.0,0.00030136,7]
[341788067,1731231034335,-151.0,0.00030136,7]
[341788068,1731231034345,-151.0,0.00030136,7]
[341788069,1731231034354,-151.0,0.00030136,7]
[341788070,1731231034363,-151.0,0.00030136,7]
[341788071,1731231034373,-151.0,0.00030136,7]
[341788072,1731231034382,-151.0,0.00030136,7]
[341788073,1731231034391,-151.0,0.00030136,7]